[Event "November 21 Late 2023"]
[Site "https://www.chess.com"]
[Date "2023.11.21"]
[Round "2"]
[White "Ongut, Tamas Gunes"]
[Black "Zampronha, Wladimir Camilo"]
[Result "0-1"]
[Board "128"]
[TimeControl "180+1"]
[WhiteFideId "770280"]
[BlackFideId "2103087"]
[WhiteElo "2148"]
[BlackElo "2055"]
[WhiteTeam "HUN"]
[BlackTeam "BRA"]
[WhiteClock "0:01:06"]
[BlackClock "0:00:51"]

1. h4 {[%clk 0:02:44]}  c5 {[%clk 0:02:59]} 2. c4 {[%clk 0:02:37]}  e6 {[%clk 0:02:59]} 3. Nc3 {[%clk 0:02:36]}  d5 {[%clk 0:02:59]} 4. cxd5 {[%clk 0:02:36]}  exd5 {[%clk 0:03:00]} 5. d4 {[%clk 0:02:36]}  Nc6 {[%clk 0:02:59]} 6. dxc5 {[%clk 0:02:34]}  d4 {[%clk 0:02:59]} 7. Ne4 {[%clk 0:02:33]}  Bxc5 {[%clk 0:03:00]} 8. Nxc5 {[%clk 0:02:33]}  Qa5+ {[%clk 0:02:59]} 9. Bd2 {[%clk 0:02:34]}  Qxc5 {[%clk 0:02:59]} 10. Rc1 {[%clk 0:02:35]}  Qb6 {[%clk 0:02:59]} 11. b4 {[%clk 0:02:34]}  Nf6 {[%clk 0:02:56]} 12. e3 {[%clk 0:02:29]}  dxe3 {[%clk 0:02:56]} 13. Bxe3 {[%clk 0:02:21]}  Qxb4+ {[%clk 0:02:55]} 14. Bd2 {[%clk 0:02:21]}  Qe7+ {[%clk 0:02:54]} 15. Be2 {[%clk 0:02:20]}  O-O {[%clk 0:02:53]} 16. Nf3 {[%clk 0:02:20]}  Re8 {[%clk 0:02:52]} 17. Be3 {[%clk 0:02:15]}  Bg4 {[%clk 0:02:33]} 18. O-O {[%clk 0:02:12]}  Rad8 {[%clk 0:02:30]} 19. Qb3 {[%clk 0:02:10]}  Bxf3 {[%clk 0:02:16]} 20. Bxf3 {[%clk 0:02:09]}  Nd4 {[%clk 0:02:15]} 21. Bxd4 {[%clk 0:02:04]}  Rxd4 {[%clk 0:02:16]} 22. g3 {[%clk 0:02:00]}  b6 {[%clk 0:02:14]} 23. Qc3 {[%clk 0:01:54]}  Qb4 {[%clk 0:01:20]} 24. Qc7 {[%clk 0:01:46]}  Qa3 {[%clk 0:01:17]} 25. Bc6 {[%clk 0:01:39]}  Rf8 {[%clk 0:01:07]} 26. Rfd1 {[%clk 0:01:30]}  Rxd1+ {[%clk 0:01:06]} 27. Rxd1 {[%clk 0:01:31]}  Qxa2 {[%clk 0:01:03]} 28. Rd8 {[%clk 0:01:31]}  Qa3 {[%clk 0:01:02]} 29. Rxf8+ {[%clk 0:01:29]}  Qxf8 {[%clk 0:01:02]} 30. Qxa7 {[%clk 0:01:30]}  Qd8 {[%clk 0:00:56]} 31. Kg2 {[%clk 0:01:18]}  g6 {[%clk 0:00:56]} 32. Bb5 {[%clk 0:01:06]}  Qd5+ {[%clk 0:00:51]} 0-1

[Event "November 21 Late 2023"]
[Site "https://www.chess.com"]
[Date "2023.11.21"]
[Round "2"]
[White "Silva Lucena, Cristian"]
[Black "Modric, Nesa"]
[Result "1-0"]
[Board "130"]
[TimeControl "180+1"]
[WhiteFideId "2232588"]
[BlackFideId "922579"]
[WhiteElo "2248"]
[BlackElo "2167"]
[WhiteTeam "ESP"]
[BlackTeam "SRB"]
[WhiteClock "0:01:39"]
[BlackClock "0:00:00"]

1. e4 {[%clk 0:03:00]}  c6 {[%clk 0:02:57]} 2. d4 {[%clk 0:03:00]}  d5 {[%clk 0:02:56]} 3. e5 {[%clk 0:03:01]}  Bf5 {[%clk 0:02:56]} 4. h4 {[%clk 0:03:01]}  h5 {[%clk 0:02:56]} 5. Bd3 {[%clk 0:03:02]}  Bxd3 {[%clk 0:02:54]} 6. Qxd3 {[%clk 0:03:02]}  Qa5+ {[%clk 0:02:54]} 7. b4 {[%clk 0:03:02]}  Qa6 {[%clk 0:02:51]} 8. Qb3 {[%clk 0:03:00]}  e6 {[%clk 0:02:44]} 9. Nf3 {[%clk 0:02:48]}  Nd7 {[%clk 0:02:41]} 10. a4 {[%clk 0:02:43]}  Ne7 {[%clk 0:02:22]} 11. Be3 {[%clk 0:02:41]}  Nf5 {[%clk 0:02:21]} 12. Nbd2 {[%clk 0:02:40]}  Qb6 {[%clk 0:02:04]} 13. Rb1 {[%clk 0:02:27]}  Be7 {[%clk 0:01:45]} 14. g3 {[%clk 0:02:20]}  Rc8 {[%clk 0:01:39]} 15. O-O {[%clk 0:02:16]}  O-O {[%clk 0:01:14]} 16. a5 {[%clk 0:02:16]}  Qd8 {[%clk 0:01:11]} 17. c4 {[%clk 0:02:15]}  f6 {[%clk 0:00:45]} 18. exf6 {[%clk 0:02:07]}  Bxf6 {[%clk 0:00:29]} 19. Kg2 {[%clk 0:01:58]}  Nxh4+ {[%clk 0:00:25]} 20. gxh4 {[%clk 0:01:57]}  Bxh4 {[%clk 0:00:26]} 21. Nxh4 {[%clk 0:01:57]}  Qxh4 {[%clk 0:00:25]} 22. Rh1 {[%clk 0:01:55]}  Qg4+ {[%clk 0:00:23]} 23. Kf1 {[%clk 0:01:55]}  e5 {[%clk 0:00:14]} 24. cxd5 {[%clk 0:01:52]}  exd4 {[%clk 0:00:11]} 25. dxc6+ {[%clk 0:01:52]}  Kh8 {[%clk 0:00:08]} 26. cxd7 {[%clk 0:01:51]}  dxe3 {[%clk 0:00:07]} 27. dxc8=Q {[%clk 0:01:43]}  e2+ {[%clk 0:00:04]} 28. Ke1 {[%clk 0:01:41]}  Rxc8 {[%clk 0:00:00]} 29. Qf3 {[%clk 0:01:39]} 1-0

[Event "November 21 Late 2023"]
[Site "https://www.chess.com"]
[Date "2023.11.21"]
[Round "2"]
[White "BM223344"]
[Black "Rose, Felix"]
[Result "1-0"]
[Board "133"]
[TimeControl "180+1"]
[BlackFideId "5105722"]
[WhiteElo "2488"]
[BlackElo "2039"]
[BlackTeam "MEX"]
[WhiteClock "0:01:53"]
[BlackClock "0:00:07"]

1. Nf3 {[%clk 0:03:00]}  d5 {[%clk 0:02:59]} 2. b3 {[%clk 0:03:00]}  Nf6 {[%clk 0:02:59]} 3. e3 {[%clk 0:03:00]}  e6 {[%clk 0:02:59]} 4. Bb2 {[%clk 0:03:01]}  Be7 {[%clk 0:02:59]} 5. Be2 {[%clk 0:03:02]}  O-O {[%clk 0:03:00]} 6. O-O {[%clk 0:03:02]}  c5 {[%clk 0:03:01]} 7. d4 {[%clk 0:03:03]}  b6 {[%clk 0:03:01]} 8. Nbd2 {[%clk 0:03:03]}  Bb7 {[%clk 0:03:01]} 9. c4 {[%clk 0:03:03]}  Nc6 {[%clk 0:02:57]} 10. Rc1 {[%clk 0:03:01]}  Rc8 {[%clk 0:02:57]} 11. cxd5 {[%clk 0:03:02]}  Nxd5 {[%clk 0:02:54]} 12. dxc5 {[%clk 0:03:01]}  Bxc5 {[%clk 0:02:54]} 13. Ne4 {[%clk 0:03:00]}  Be7 {[%clk 0:02:51]} 14. a3 {[%clk 0:02:53]}  Nf6 {[%clk 0:02:46]} 15. Ng3 {[%clk 0:02:48]}  Na5 {[%clk 0:02:42]} 16. b4 {[%clk 0:02:47]}  Nc6 {[%clk 0:02:27]} 17. Qa4 {[%clk 0:02:37]}  Qe8 {[%clk 0:02:09]} 18. Bb5 {[%clk 0:02:30]}  a6 {[%clk 0:01:53]} 19. Bxc6 {[%clk 0:02:28]}  Rxc6 {[%clk 0:01:47]} 20. Rxc6 {[%clk 0:02:22]}  Qxc6 {[%clk 0:01:47]} 21. Qxc6 {[%clk 0:02:22]}  Bxc6 {[%clk 0:01:48]} 22. Rc1 {[%clk 0:02:22]}  Bb5 {[%clk 0:01:27]} 23. Nd4 {[%clk 0:02:21]}  Ba4 {[%clk 0:01:21]} 24. Rc7 {[%clk 0:02:13]}  Nd5 {[%clk 0:01:15]} 25. Ra7 {[%clk 0:02:12]}  Bf6 {[%clk 0:00:36]} 26. Rxa6 {[%clk 0:02:06]}  Bxd4 {[%clk 0:00:36]} 27. Bxd4 {[%clk 0:02:04]}  Bb5 {[%clk 0:00:30]} 28. Ra7 {[%clk 0:02:04]}  Rc8 {[%clk 0:00:30]} 29. h4 {[%clk 0:02:04]}  h6 {[%clk 0:00:26]} 30. e4 {[%clk 0:01:58]}  Rc1+ {[%clk 0:00:23]} 31. Kh2 {[%clk 0:01:57]}  Nf4 {[%clk 0:00:23]} 32. Be3 {[%clk 0:01:55]}  Nd3 {[%clk 0:00:13]} 33. Bxc1 {[%clk 0:01:55]}  Nxc1 {[%clk 0:00:07]} 34. Rb7 {[%clk 0:01:53]} 1-0

[Event "November 21 Late 2023"]
[Site "https://www.chess.com"]
[Date "2023.11.21"]
[Round "2"]
[White "Estrategia_vs_Tactica"]
[Black "a-z30"]
[Result "1/2-1/2"]
[Board "134"]
[TimeControl "180+1"]
[WhiteElo "2306"]
[BlackElo "2483"]
[WhiteClock "0:00:21"]
[BlackClock "0:00:08"]

1. e4 {[%clk 0:03:00]}  d6 {[%clk 0:02:56]} 2. d4 {[%clk 0:02:57]}  Nf6 {[%clk 0:02:56]} 3. Nc3 {[%clk 0:02:57]}  g6 {[%clk 0:02:57]} 4. g3 {[%clk 0:02:57]}  Bg7 {[%clk 0:02:58]} 5. Bg2 {[%clk 0:02:58]}  O-O {[%clk 0:02:58]} 6. Nge2 {[%clk 0:02:58]}  Nbd7 {[%clk 0:02:59]} 7. O-O {[%clk 0:02:58]}  Rb8 {[%clk 0:02:59]} 8. a4 {[%clk 0:02:56]}  c5 {[%clk 0:02:59]} 9. d5 {[%clk 0:02:54]}  b6 {[%clk 0:02:53]} 10. Re1 {[%clk 0:02:53]}  a6 {[%clk 0:02:53]} 11. Rb1 {[%clk 0:02:45]}  b5 {[%clk 0:02:53]} 12. axb5 {[%clk 0:02:45]}  axb5 {[%clk 0:02:54]} 13. b4 {[%clk 0:02:46]}  Ng4 {[%clk 0:01:56]} 14. h3 {[%clk 0:02:30]}  Nge5 {[%clk 0:01:55]} 15. bxc5 {[%clk 0:02:06]}  b4 {[%clk 0:01:56]} 16. Na2 {[%clk 0:02:06]}  Nxc5 {[%clk 0:01:35]} 17. Nd4 {[%clk 0:02:06]}  Qa5 {[%clk 0:01:09]} 18. Ra1 {[%clk 0:02:01]}  Bd7 {[%clk 0:00:54]} 19. Bg5 {[%clk 0:01:59]}  Ned3 {[%clk 0:00:46]} 20. Nc3 {[%clk 0:01:27]}  Qc7 {[%clk 0:00:33]} 21. cxd3 {[%clk 0:01:06]}  Bxd4 {[%clk 0:00:32]} 22. Ne2 {[%clk 0:00:59]}  Bxa1 {[%clk 0:00:32]} 23. Qxa1 {[%clk 0:01:00]}  f6 {[%clk 0:00:32]} 24. Bh6 {[%clk 0:00:59]}  Ra8 {[%clk 0:00:29]} 25. Qb1 {[%clk 0:00:55]}  Rfb8 {[%clk 0:00:28]} 26. d4 {[%clk 0:00:54]}  Na4 {[%clk 0:00:27]} 27. e5 {[%clk 0:00:54]}  Nc3 {[%clk 0:00:26]} 28. Qd3 {[%clk 0:00:49]}  dxe5 {[%clk 0:00:25]} 29. d6 {[%clk 0:00:44]}  exd6 {[%clk 0:00:20]} 30. dxe5 {[%clk 0:00:42]}  dxe5 {[%clk 0:00:15]} 31. Nxc3 {[%clk 0:00:42]}  bxc3 {[%clk 0:00:15]} 32. Qd5+ {[%clk 0:00:41]}  Be6 {[%clk 0:00:08]} 33. Qxe6+ {[%clk 0:00:41]}  Qf7 {[%clk 0:00:09]} 34. Qxf7+ {[%clk 0:00:29]}  Kxf7 {[%clk 0:00:10]} 35. Bxa8 {[%clk 0:00:27]}  Rxa8 {[%clk 0:00:11]} 36. Be3 {[%clk 0:00:23]}  Rc8 {[%clk 0:00:08]} 37. Rc1 {[%clk 0:00:24]}  c2 {[%clk 0:00:08]} 38. Kf1 {[%clk 0:00:24]}  Ke6 {[%clk 0:00:09]} 39. Ke2 {[%clk 0:00:24]}  Kd5 {[%clk 0:00:10]} 40. Kd2 {[%clk 0:00:25]}  Ke4 {[%clk 0:00:09]} 41. Rxc2 {[%clk 0:00:25]}  Rxc2+ {[%clk 0:00:09]} 42. Kxc2 {[%clk 0:00:26]}  Kf3 {[%clk 0:00:09]} 43. Kd3 {[%clk 0:00:26]}  f5 {[%clk 0:00:08]} 44. h4 {[%clk 0:00:23]}  f4 {[%clk 0:00:08]} 45. gxf4 {[%clk 0:00:23]}  exf4 {[%clk 0:00:09]} 46. Bc5 {[%clk 0:00:23]}  h6 {[%clk 0:00:09]} 47. Kd2 {[%clk 0:00:23]}  g5 {[%clk 0:00:09]} 48. hxg5 {[%clk 0:00:23]}  hxg5 {[%clk 0:00:09]} 49. Ke1 {[%clk 0:00:19]}  g4 {[%clk 0:00:06]} 50. Kf1 {[%clk 0:00:19]}  g3 {[%clk 0:00:06]} 51. fxg3 {[%clk 0:00:19]}  fxg3 {[%clk 0:00:06]} 52. Kg1 {[%clk 0:00:20]}  g2 {[%clk 0:00:07]} 53. Bf2 {[%clk 0:00:20]}  Kg4 {[%clk 0:00:08]} 54. Kxg2 {[%clk 0:00:21]} 1/2-1/2

[Event "November 21 Late 2023"]
[Site "https://www.chess.com"]
[Date "2023.11.21"]
[Round "2"]
[White "FuenfgegenWilly"]
[Black "Mendez Machado, Andre"]
[Result "1-0"]
[Board "135"]
[TimeControl "180+1"]
[BlackFideId "6603793"]
[WhiteElo "2481"]
[BlackElo "1950"]
[BlackTeam "PAN"]
[WhiteClock "0:01:27"]
[BlackClock "0:00:09"]

1. e4 {[%clk 0:03:00]}  e5 {[%clk 0:02:59]} 2. Nc3 {[%clk 0:03:01]}  Nc6 {[%clk 0:02:59]} 3. f4 {[%clk 0:03:01]}  exf4 {[%clk 0:02:57]} 4. Nf3 {[%clk 0:03:01]}  g5 {[%clk 0:02:57]} 5. g3 {[%clk 0:03:02]}  g4 {[%clk 0:02:53]} 6. Nh4 {[%clk 0:03:02]}  d6 {[%clk 0:02:29]} 7. d4 {[%clk 0:02:59]}  Be7 {[%clk 0:02:23]} 8. Bxf4 {[%clk 0:02:58]}  Bxh4 {[%clk 0:02:21]} 9. gxh4 {[%clk 0:02:59]}  Qxh4+ {[%clk 0:02:21]} 10. Bg3 {[%clk 0:03:00]}  Qf6 {[%clk 0:02:17]} 11. Nd5 {[%clk 0:03:00]}  Qxd4 {[%clk 0:02:08]} 12. Nxc7+ {[%clk 0:02:53]}  Kd8 {[%clk 0:01:59]} 13. Nxa8 {[%clk 0:02:44]}  Qxe4+ {[%clk 0:01:53]} 14. Kf2 {[%clk 0:02:35]}  Qxh1 {[%clk 0:01:34]} 15. Qxd6+ {[%clk 0:02:34]}  Bd7 {[%clk 0:01:09]} 16. Rd1 {[%clk 0:01:44]}  Qf3+ {[%clk 0:00:59]} 17. Kg1 {[%clk 0:01:44]}  Nf6 {[%clk 0:00:34]} 18. Bh4 {[%clk 0:01:29]}  Qe3+ {[%clk 0:00:21]} 19. Kh1 {[%clk 0:01:29]}  Rg8 {[%clk 0:00:09]} 20. Qxd7# {[%clk 0:01:27]} 1-0

[Event "November 21 Late 2023"]
[Site "https://www.chess.com"]
[Date "2023.11.21"]
[Round "2"]
[White "Zeydan, Salih"]
[Black "Keleberda, Tymur"]
[Result "0-1"]
[Board "142"]
[TimeControl "180+1"]
[WhiteFideId "6361722"]
[BlackFideId "14174294"]
[WhiteElo "1988"]
[BlackElo "2198"]
[WhiteTeam "TUR"]
[BlackTeam "CAN"]
[WhiteClock "0:00:05"]
[BlackClock "0:00:09"]

1. e4 {[%clk 0:02:55]}  c5 {[%clk 0:02:59]} 2. Nf3 {[%clk 0:02:55]}  d6 {[%clk 0:03:00]} 3. d4 {[%clk 0:02:55]}  cxd4 {[%clk 0:03:01]} 4. Nxd4 {[%clk 0:02:56]}  Nf6 {[%clk 0:03:01]} 5. Nc3 {[%clk 0:02:56]}  a6 {[%clk 0:03:01]} 6. Bg5 {[%clk 0:02:55]}  e6 {[%clk 0:03:01]} 7. f4 {[%clk 0:02:56]}  Qb6 {[%clk 0:03:00]} 8. Qd2 {[%clk 0:02:42]}  Qxb2 {[%clk 0:02:56]} 9. Rb1 {[%clk 0:02:42]}  Qa3 {[%clk 0:02:56]} 10. f5 {[%clk 0:02:42]}  Nc6 {[%clk 0:02:54]} 11. fxe6 {[%clk 0:02:40]}  fxe6 {[%clk 0:02:55]} 12. Nxc6 {[%clk 0:02:39]}  bxc6 {[%clk 0:02:55]} 13. e5 {[%clk 0:02:40]}  dxe5 {[%clk 0:02:56]} 14. Bxf6 {[%clk 0:02:32]}  gxf6 {[%clk 0:02:57]} 15. Be2 {[%clk 0:02:32]}  Qd6 {[%clk 0:02:23]} 16. Bh5+ {[%clk 0:02:30]}  Ke7 {[%clk 0:02:21]} 17. Qe3 {[%clk 0:02:09]}  Qd4 {[%clk 0:02:18]} 18. Qg3 {[%clk 0:01:55]}  Qf4 {[%clk 0:02:08]} 19. Qd3 {[%clk 0:01:44]}  Qd4 {[%clk 0:02:07]} 20. Bf3 {[%clk 0:01:27]}  Qxd3 {[%clk 0:01:44]} 21. cxd3 {[%clk 0:01:14]}  Kd7 {[%clk 0:01:41]} 22. Rb6 {[%clk 0:01:01]}  Ra7 {[%clk 0:00:04]} 23. Rxc6 {[%clk 0:00:40]}  Bb7 {[%clk 0:00:03]} 24. Rc4 {[%clk 0:00:25]}  Bxf3 {[%clk 0:00:02]} 25. gxf3 {[%clk 0:00:26]}  Bd6 {[%clk 0:00:02]} 26. Ne4 {[%clk 0:00:24]}  f5 {[%clk 0:00:02]} 27. Ng5 {[%clk 0:00:17]}  Ke7 {[%clk 0:00:02]} 28. Ke2 {[%clk 0:00:16]}  Rb8 {[%clk 0:00:02]} 29. Rhc1 {[%clk 0:00:10]}  h6 {[%clk 0:00:02]} 30. Nh3 {[%clk 0:00:07]}  Rb2+ {[%clk 0:00:01]} 31. R1c2 {[%clk 0:00:08]}  Rab7 {[%clk 0:00:02]} 32. Nf2 {[%clk 0:00:07]}  a5 {[%clk 0:00:02]} 33. d4 {[%clk 0:00:06]}  Rxc2+ {[%clk 0:00:02]} 34. Rxc2 {[%clk 0:00:05]}  exd4 {[%clk 0:00:03]} 35. Nd3 {[%clk 0:00:05]}  e5 {[%clk 0:00:03]} 36. f4 {[%clk 0:00:06]}  e4 {[%clk 0:00:03]} 37. Ne1 {[%clk 0:00:04]}  d3+ {[%clk 0:00:03]} 38. Nxd3 {[%clk 0:00:05]}  exd3+ {[%clk 0:00:04]} 39. Kxd3 {[%clk 0:00:06]}  Bxf4 {[%clk 0:00:05]} 40. Re2+ {[%clk 0:00:07]}  Kf6 {[%clk 0:00:05]} 41. Rf2 {[%clk 0:00:07]}  Be5 {[%clk 0:00:05]} 42. Re2 {[%clk 0:00:08]}  Rd7+ {[%clk 0:00:05]} 43. Kc4 {[%clk 0:00:08]}  Rd4+ {[%clk 0:00:05]} 44. Kc5 {[%clk 0:00:08]}  a4 {[%clk 0:00:05]} 45. h3 {[%clk 0:00:07]}  Rh4 {[%clk 0:00:05]} 46. Kd5 {[%clk 0:00:06]}  Rxh3 {[%clk 0:00:04]} 47. Rc2 {[%clk 0:00:01]}  Rd3+ {[%clk 0:00:04]} 48. Kc4 {[%clk 0:00:01]}  Rc3+ {[%clk 0:00:05]} 49. Rxc3 {[%clk 0:00:02]}  Bxc3 {[%clk 0:00:05]} 50. Kxc3 {[%clk 0:00:02]}  h5 {[%clk 0:00:06]} 51. Kb4 {[%clk 0:00:02]}  h4 {[%clk 0:00:07]} 52. Kxa4 {[%clk 0:00:03]}  h3 {[%clk 0:00:07]} 53. Kb3 {[%clk 0:00:04]}  h2 {[%clk 0:00:08]} 54. Kc3 {[%clk 0:00:05]}  h1=Q {[%clk 0:00:09]} 55. a4 {[%clk 0:00:06]}  Qa8 {[%clk 0:00:09]} 56. Kb4 {[%clk 0:00:06]}  Qa6 {[%clk 0:00:10]} 57. a5 {[%clk 0:00:05]}  f4 {[%clk 0:00:09]} 0-1

[Event "November 21 Late 2023"]
[Site "https://www.chess.com"]
[Date "2023.11.21"]
[Round "2"]
[White "Della Morte, German"]
[Black "Erece, Ece Alkim"]
[Result "1-0"]
[Board "143"]
[TimeControl "180+1"]
[WhiteFideId "113522"]
[BlackFideId "6346006"]
[WhiteElo "2306"]
[BlackElo "1667"]
[WhiteTeam "ARG"]
[BlackTeam "TUR"]
[WhiteClock "0:02:27"]
[BlackClock "0:01:28"]

1. e4 {[%clk 0:03:00]}  c5 {[%clk 0:02:55]} 2. Nc3 {[%clk 0:03:00]}  a6 {[%clk 0:02:54]} 3. g3 {[%clk 0:03:01]}  b5 {[%clk 0:02:54]} 4. Bg2 {[%clk 0:03:02]}  Bb7 {[%clk 0:02:54]} 5. d3 {[%clk 0:03:02]}  e6 {[%clk 0:02:54]} 6. f4 {[%clk 0:03:03]}  Nf6 {[%clk 0:02:54]} 7. Nf3 {[%clk 0:03:03]}  d6 {[%clk 0:02:53]} 8. O-O {[%clk 0:03:04]}  Be7 {[%clk 0:02:54]} 9. Ne2 {[%clk 0:03:04]}  Nc6 {[%clk 0:02:53]} 10. h3 {[%clk 0:03:03]}  Qc7 {[%clk 0:02:51]} 11. Be3 {[%clk 0:03:03]}  d5 {[%clk 0:02:48]} 12. e5 {[%clk 0:03:03]}  Ng8 {[%clk 0:02:47]} 13. c3 {[%clk 0:03:04]}  h5 {[%clk 0:02:47]} 14. d4 {[%clk 0:03:04]}  cxd4 {[%clk 0:02:45]} 15. Nexd4 {[%clk 0:03:03]}  Nh6 {[%clk 0:02:45]} 16. Nxc6 {[%clk 0:03:00]}  Bxc6 {[%clk 0:02:42]} 17. Nd4 {[%clk 0:03:01]}  Bb7 {[%clk 0:02:40]} 18. Re1 {[%clk 0:03:01]}  Bc5 {[%clk 0:02:40]} 19. Bf2 {[%clk 0:02:58]}  Rc8 {[%clk 0:02:28]} 20. Qxh5 {[%clk 0:02:54]}  g6 {[%clk 0:02:09]} 21. Qd1 {[%clk 0:02:51]}  b4 {[%clk 0:02:04]} 22. Rc1 {[%clk 0:02:50]}  Qb6 {[%clk 0:02:01]} 23. cxb4 {[%clk 0:02:47]}  Bxb4 {[%clk 0:01:56]} 24. Qa4+ {[%clk 0:02:47]}  Kf8 {[%clk 0:01:44]} 25. Rxc8+ {[%clk 0:02:45]}  Bxc8 {[%clk 0:01:43]} 26. Nxe6+ {[%clk 0:02:45]}  Qxe6 {[%clk 0:01:44]} 27. Qxb4+ {[%clk 0:02:45]}  Kg7 {[%clk 0:01:43]} 28. Qd6 {[%clk 0:02:42]}  Qxd6 {[%clk 0:01:37]} 29. exd6 {[%clk 0:02:43]}  Nf5 {[%clk 0:01:36]} 30. g4 {[%clk 0:02:35]}  Nxd6 {[%clk 0:01:35]} 31. Bd4+ {[%clk 0:02:35]}  f6 {[%clk 0:01:35]} 32. Re7+ {[%clk 0:02:34]}  Kf8 {[%clk 0:01:36]} 33. Bxf6 {[%clk 0:02:33]}  Rg8 {[%clk 0:01:33]} 34. Bxd5 {[%clk 0:02:32]}  Ne8 {[%clk 0:01:28]} 35. Rf7# {[%clk 0:02:27]} 1-0

[Event "November 21 Late 2023"]
[Site "https://www.chess.com"]
[Date "2023.11.21"]
[Round "2"]
[White "Butti, Enrique"]
[Black "Suder, Jakub"]
[Result "0-1"]
[Board "144"]
[TimeControl "180+1"]
[WhiteFideId "3700470"]
[BlackFideId "1195310"]
[WhiteElo "2080"]
[BlackElo "2248"]
[WhiteTeam "PAR"]
[BlackTeam "POL"]
[WhiteClock "0:00:09"]
[BlackClock "0:00:09"]

1. d4 {[%clk 0:03:00]}  d5 {[%clk 0:02:55]} 2. c4 {[%clk 0:02:58]}  e6 {[%clk 0:02:55]} 3. Nf3 {[%clk 0:02:56]}  a6 {[%clk 0:02:54]} 4. e3 {[%clk 0:02:55]}  Nf6 {[%clk 0:02:54]} 5. Bd3 {[%clk 0:02:53]}  dxc4 {[%clk 0:02:53]} 6. Bxc4 {[%clk 0:02:53]}  b5 {[%clk 0:02:54]} 7. Bd3 {[%clk 0:02:53]}  Bb7 {[%clk 0:02:54]} 8. a4 {[%clk 0:02:52]}  b4 {[%clk 0:02:46]} 9. Nbd2 {[%clk 0:02:50]}  c5 {[%clk 0:02:46]} 10. Nc4 {[%clk 0:02:48]}  Nc6 {[%clk 0:02:37]} 11. dxc5 {[%clk 0:02:29]}  Bxc5 {[%clk 0:02:38]} 12. a5 {[%clk 0:02:28]}  O-O {[%clk 0:02:36]} 13. O-O {[%clk 0:02:27]}  Qd5 {[%clk 0:02:32]} 14. b3 {[%clk 0:02:22]}  Rfd8 {[%clk 0:02:28]} 15. Be2 {[%clk 0:02:21]}  Qh5 {[%clk 0:02:24]} 16. Qc2 {[%clk 0:02:17]}  Rac8 {[%clk 0:02:17]} 17. Bb2 {[%clk 0:02:15]}  Ba7 {[%clk 0:02:06]} 18. Bxf6 {[%clk 0:01:58]}  gxf6 {[%clk 0:02:05]} 19. Qb2 {[%clk 0:01:58]}  Qh6 {[%clk 0:02:01]} 20. Rfd1 {[%clk 0:01:52]}  Bb8 {[%clk 0:02:01]} 21. g3 {[%clk 0:01:37]}  Qh3 {[%clk 0:01:56]} 22. Bf1 {[%clk 0:01:29]}  Qh5 {[%clk 0:01:45]} 23. Bg2 {[%clk 0:01:29]}  Kg7 {[%clk 0:01:38]} 24. Nd4 {[%clk 0:01:11]}  e5 {[%clk 0:01:22]} 25. Bf3 {[%clk 0:00:57]}  Qh3 {[%clk 0:01:20]} 26. Nxc6 {[%clk 0:00:54]}  Rxd1+ {[%clk 0:01:18]} 27. Rxd1 {[%clk 0:00:53]}  Bxc6 {[%clk 0:01:18]} 28. Bxc6 {[%clk 0:00:50]}  Rxc6 {[%clk 0:01:19]} 29. Rd8 {[%clk 0:00:43]}  Bc7 {[%clk 0:01:16]} 30. Ra8 {[%clk 0:00:38]}  Rc5 {[%clk 0:01:10]} 31. Rxa6 {[%clk 0:00:26]}  Rd5 {[%clk 0:01:10]} 32. Qc2 {[%clk 0:00:24]}  e4 {[%clk 0:00:30]} 33. Ra7 {[%clk 0:00:19]}  Rh5 {[%clk 0:00:23]} 34. Qxe4 {[%clk 0:00:16]}  Qxh2+ {[%clk 0:00:21]} 35. Kf1 {[%clk 0:00:15]}  Be5 {[%clk 0:00:13]} 36. Qd5 {[%clk 0:00:13]}  Kh6 {[%clk 0:00:10]} 37. Rxf7 {[%clk 0:00:11]}  Rf5 {[%clk 0:00:10]} 38. Nxe5 {[%clk 0:00:09]}  Qxf2# {[%clk 0:00:09]} 0-1

[Event "November 21 Late 2023"]
[Site "https://www.chess.com"]
[Date "2023.11.21"]
[Round "2"]
[White "Vila Dupla, Aurelio"]
[Black "Reprintsev, Alexander"]
[Result "1-0"]
[Board "148"]
[TimeControl "180+1"]
[WhiteFideId "2203383"]
[BlackFideId "14100541"]
[WhiteElo "2009"]
[BlackElo "2229"]
[WhiteTeam "ESP"]
[BlackTeam "UKR"]
[WhiteClock "0:00:02"]
[BlackClock "0:00:00"]

1. Nf3 {[%clk 0:03:00]}  Nc6 {[%clk 0:02:58]} 2. d4 {[%clk 0:03:00]}  d5 {[%clk 0:02:57]} 3. g3 {[%clk 0:03:00]}  Bf5 {[%clk 0:02:57]} 4. Bg2 {[%clk 0:03:00]}  Nb4 {[%clk 0:02:57]} 5. Na3 {[%clk 0:02:55]}  e6 {[%clk 0:02:57]} 6. O-O {[%clk 0:02:55]}  h6 {[%clk 0:02:57]} 7. c4 {[%clk 0:02:48]}  Nf6 {[%clk 0:02:53]} 8. Bd2 {[%clk 0:02:35]}  a5 {[%clk 0:02:50]} 9. cxd5 {[%clk 0:02:07]}  exd5 {[%clk 0:02:50]} 10. Nb5 {[%clk 0:02:02]}  c6 {[%clk 0:02:47]} 11. Nc3 {[%clk 0:02:02]}  Be7 {[%clk 0:02:47]} 12. a3 {[%clk 0:02:02]}  Na6 {[%clk 0:02:45]} 13. Bf4 {[%clk 0:01:53]}  O-O {[%clk 0:02:45]} 14. Ne5 {[%clk 0:01:53]}  Nc7 {[%clk 0:02:29]} 15. Nd3 {[%clk 0:01:48]}  Ne6 {[%clk 0:02:23]} 16. Be5 {[%clk 0:01:28]}  Nd7 {[%clk 0:02:01]} 17. e4 {[%clk 0:01:21]}  dxe4 {[%clk 0:01:56]} 18. Nxe4 {[%clk 0:01:21]}  Nxe5 {[%clk 0:01:47]} 19. dxe5 {[%clk 0:01:20]}  Qd4 {[%clk 0:01:37]} 20. Re1 {[%clk 0:00:53]}  Rfd8 {[%clk 0:01:28]} 21. Re3 {[%clk 0:00:27]}  Qb6 {[%clk 0:01:04]} 22. Nd6 {[%clk 0:00:11]}  Bxd6 {[%clk 0:00:48]} 23. exd6 {[%clk 0:00:11]}  Rxd6 {[%clk 0:00:48]} 24. Qe2 {[%clk 0:00:11]}  Bxd3 {[%clk 0:00:46]} 25. Rxd3 {[%clk 0:00:11]}  Rxd3 {[%clk 0:00:45]} 26. Qxd3 {[%clk 0:00:11]}  Rd8 {[%clk 0:00:42]} 27. Qe2 {[%clk 0:00:08]}  Nd4 {[%clk 0:00:34]} 28. Qe7 {[%clk 0:00:08]}  Rf8 {[%clk 0:00:27]} 29. b4 {[%clk 0:00:08]}  axb4 {[%clk 0:00:24]} 30. axb4 {[%clk 0:00:09]}  Nc2 {[%clk 0:00:22]} 31. Rb1 {[%clk 0:00:08]}  Qa6 {[%clk 0:00:17]} 32. Qc5 {[%clk 0:00:06]}  Na3 {[%clk 0:00:16]} 33. Ra1 {[%clk 0:00:05]}  Ra8 {[%clk 0:00:16]} 34. b5 {[%clk 0:00:04]}  Qa5 {[%clk 0:00:15]} 35. Bf1 {[%clk 0:00:04]}  Qa4 {[%clk 0:00:09]} 36. bxc6 {[%clk 0:00:03]}  bxc6 {[%clk 0:00:10]} 37. Bg2 {[%clk 0:00:04]}  Ra6 {[%clk 0:00:09]} 38. Rc1 {[%clk 0:00:04]}  Qb5 {[%clk 0:00:09]} 39. Bxc6 {[%clk 0:00:04]}  Qxc5 {[%clk 0:00:09]} 40. Rxc5 {[%clk 0:00:03]}  Nb1 {[%clk 0:00:09]} 41. Kg2 {[%clk 0:00:03]}  Nd2 {[%clk 0:00:09]} 42. Rc2 {[%clk 0:00:03]}  Nb3 {[%clk 0:00:08]} 43. Bf3 {[%clk 0:00:03]}  Nd4 {[%clk 0:00:08]} 44. Rc8+ {[%clk 0:00:03]}  Kh7 {[%clk 0:00:09]} 45. Be4+ {[%clk 0:00:04]}  g6 {[%clk 0:00:09]} 46. Rc7 {[%clk 0:00:05]}  Kg7 {[%clk 0:00:09]} 47. Bd5 {[%clk 0:00:06]}  Rf6 {[%clk 0:00:08]} 48. Bc4 {[%clk 0:00:05]}  Ne6 {[%clk 0:00:08]} 49. Ra7 {[%clk 0:00:03]}  Ng5 {[%clk 0:00:06]} 50. h4 {[%clk 0:00:02]}  Ne4 {[%clk 0:00:00]} 51. Ba2 {[%clk 0:00:02]} 1-0